bitfinex/quotes_BTCUSD_20260104
["timestamp","ask_amount","ask_price","bid_price","bid_amount"]
[1767540484627,0.13053105,91195.0,91188.0,0.00915157]
[1767540484804,0.13053105,91195.0,91191.0,0.01096599]
[1767540485259,0.13053105,91195.0,91191.0,0.0657955]
[1767540486558,0.13053105,91195.0,91192.0,0.05482931]
[1767540486700,0.13053105,91195.0,91192.0,0.06579518]
[1767540486905,0.13053105,91195.0,91192.0,0.01096587]
[1767540487383,0.13053105,91195.0,91192.0,0.0657952]
[1767540487555,0.13053105,91195.0,91192.0,0.01096587]
[1767540487765,0.14149656,91195.0,91191.0,0.0657955]
[1767540488949,0.19632441,91195.0,91190.0,0.06579668]
[1767540489156,0.12953205,91195.0,91191.0,0.01096599]
[1767540489365,0.12953205,91195.0,91191.0,0.06579542]
[1767540489965,0.12953205,91195.0,91192.0,0.05482918]
[1767540490176,0.12953205,91195.0,91191.0,0.06579542]
[1767540491751,0.19532555,91195.0,91190.0,0.06579562]
[1767540491884,0.19532555,91195.0,91191.0,0.06579592]
[1767540493244,0.14049756,91195.0,91191.0,0.06579592]
[1767540493541,0.12953205,91195.0,91191.0,0.06579592]
[1767540493850,0.12953205,91195.0,91192.0,0.06579518]
[1767540494094,0.12953205,91195.0,91192.0,0.01096587]
[1767540495197,0.12948688,91195.0,91192.0,0.01096587]
[1767540496156,0.12948688,91195.0,91192.0,0.06579519]
[1767540496794,0.000999,91192.0,91190.0,0.01096611]
[1767540497035,0.000999,91192.0,91190.0,0.06579642]
[1767540497198,0.19528046,91195.0,91191.0,0.0657958]
[1767540500614,0.14045239,91195.0,91191.0,0.0657958]
[1767540502094,0.000999,91191.0,91190.0,0.05483057]
[1767540502302,0.01096563,91194.0,91190.0,0.06579668]
[1767540502601,0.1952801,91195.0,91190.0,0.06579668]
[1767540503165,0.1952801,91195.0,91191.0,0.06579588]
[1767540503464,0.1952801,91195.0,91190.0,0.06579668]
[1767540503818,0.06579382,91194.0,91190.0,0.06579668]
[1767540504557,0.01096563,91194.0,91190.0,0.06579668]
[1767540506178,0.0657941,91194.0,91190.0,0.01096611]
[1767540506339,0.0657941,91194.0,91190.0,0.06579656]
[1767540506538,0.0657941,91194.0,91190.0,0.06575214]
[1767540507320,0.0657941,91194.0,91190.0,0.06570772]
[1767540507491,0.01096563,91194.0,91190.0,0.06570772]
[1767540508258,0.14045239,91195.0,91191.0,0.0657956]
[1767540510394,0.12948688,91195.0,91192.0,0.06579513]
[1767540512741,0.19528018,91195.0,91191.0,0.0657956]
[1767540513857,0.14045239,91195.0,91191.0,0.0657956]
[1767540514102,0.12948688,91195.0,91192.0,0.06579506]
[1767540514640,0.12948688,91195.0,91192.0,0.01096587]
[1767540514848,0.19527998,91195.0,91190.0,0.01087727]
[1767540515021,0.000999,91192.0,91190.0,0.0657077]
[1767540515428,0.19527998,91195.0,91190.0,0.0657077]
[1767540515638,0.05482822,91194.0,91190.0,0.01087727]
[1767540515790,0.05482822,91194.0,91190.0,0.06570776]
[1767540515987,0.06579385,91194.0,91189.0,0.06579722]
[1767540516188,0.05482881,91193.0,91189.0,0.06579722]
[1767540517258,0.06579456,91193.0,91189.0,0.06579722]
[1767540517769,0.01096575,91193.0,91189.0,0.06579722]
[1767540517913,0.01096575,91193.0,91189.0,0.06570686]
[1767540518366,0.06579385,91194.0,91190.0,0.06579639]
[1767540518531,0.01096563,91194.0,91190.0,0.06579639]
[1767540520771,0.06579385,91194.0,91190.0,0.06579639]
[1767540520974,0.19527998,91195.0,91191.0,0.06579584]
[1767540521334,0.05482826,91194.0,91190.0,0.06579639]
[1767540521553,0.06579389,91194.0,91190.0,0.06579639]
[1767540521754,0.01096563,91194.0,91190.0,0.06579639]
[1767540523398,0.01096563,91194.0,91190.0,0.06575197]
[1767540523598,0.01096563,91194.0,91190.0,0.01096611]
[1767540524621,0.06579392,91194.0,91190.0,0.01096611]
[1767540524820,0.06579392,91194.0,91190.0,0.01087575]
[1767540526067,0.01096575,91193.0,91189.0,0.06579689]
[1767540526737,0.06579467,91193.0,91189.0,0.06579689]
[1767540526951,0.06579467,91193.0,91189.0,0.00996723]
[1767540527183,0.01096587,91192.0,91186.0,0.06579905]
[1767540527329,0.05483031,91191.0,91187.0,0.05483206]
[1767540527656,0.05483064,91190.0,91185.0,0.01096671]
[1767540527852,0.05483064,91190.0,91181.0,0.01096719]
[1767540527853,0.01096671,91185.0,91181.0,0.04502393]
[1767540528096,0.06579957,91186.0,91182.0,0.01096707]
[1767540528994,0.06579957,91186.0,91185.0,0.00063242]
[1767540530096,0.04696397,91185.0,91174.0,0.01096803]
[1767540530316,0.05793237,91171.0,91162.0,0.01096948]
[1767540530646,0.11177651,91171.0,91166.0,0.06581373]
[1767540530764,0.05693337,91171.0,91166.0,0.06581373]
[1767540531201,0.01096827,91172.0,91168.0,0.06631143]
[1767540531615,0.06580904,91173.0,91168.0,0.06631143]
[1767540532202,0.01096815,91173.0,91169.0,0.06581169]
[1767540532403,0.06580831,91174.0,91170.0,0.01096852]
[1767540532603,0.01096803,91174.0,91170.0,0.06581107]
[1767540532853,0.06580751,91175.0,91171.0,0.06581031]
[1767540533077,0.01096791,91175.0,91171.0,0.06581031]
[1767540533941,0.06580692,91176.0,91171.0,0.06581031]
[1767540534534,0.0658077,91175.0,91171.0,0.0109684]
[1767540534943,0.01096791,91175.0,91171.0,0.06581023]
[1767540537011,0.01096791,91175.0,91172.0,0.04502393]
[1767540537503,0.03288743,91179.0,91178.0,0.04502393]
[1767540537869,0.08772476,91179.0,91178.0,0.04502393]
[1767540539388,0.08772476,91179.0,91178.0,0.04402493]
[1767540541445,0.06580539,91178.0,91175.0,0.04811178]
[1767540541659,0.03288743,91179.0,91175.0,0.05907969]
[1767540541858,0.08772461,91179.0,91178.0,0.000999]
[1767540542259,0.08772461,91179.0,91175.0,0.04811178]
[1767540543149,0.01096755,91178.0,91175.0,0.04811178]
[1767540543350,0.08772461,91179.0,91175.0,0.04811178]
[1767540543752,0.01096707,91182.0,91175.0,0.04811178]
[1767540543753,0.06580256,91182.0,91180.0,0.04811178]
[1767540543948,0.02192,91181.0,91180.0,0.04811178]
[1767540544994,0.07675598,91181.0,91180.0,0.04811178]
[1767540545191,0.08772317,91181.0,91178.0,0.04811178]
[1767540545443,0.05483379,91185.0,91183.0,0.04811178]
[1767540545649,0.07675509,91183.0,91181.0,0.04911078]
[1767540545987,0.07675509,91183.0,91181.0,0.04811178]
[1767540546427,0.07666623,91183.0,91181.0,0.04811178]
[1767540547037,0.06580245,91182.0,91177.0,0.06580591]
[1767540547231,0.01096755,91178.0,91173.0,0.05907993]
[1767540547435,0.01096755,91178.0,91174.0,0.05907981]
[1767540547632,0.01096755,91178.0,91175.0,0.04811178]
[1767540548116,0.06580554,91178.0,91175.0,0.04811178]
[1767540549117,0.01096755,91178.0,91175.0,0.04811178]
[1767540549757,0.0658051,91179.0,91178.0,0.000999]
[1767540550507,0.0658051,91179.0,91175.0,0.04811178]
[1767540550735,0.05483844,91177.0,91175.0,0.04811178]
[1767540551136,0.06580611,91177.0,91173.0,0.05907993]
[1767540551550,0.01096755,91178.0,91174.0,0.04811178]
[1767540551786,0.01096743,91179.0,91177.0,0.000999]
[1767540551988,0.01096743,91179.0,91174.0,0.06580765]
[1767540551989,0.01096743,91179.0,91175.0,0.01096791]
[1767540552313,0.01096743,91179.0,91175.0,0.06580743]
[1767540552677,0.06580391,91180.0,91176.0,0.06580676]
[1767540553228,8.696e-05,91182.0,91177.0,0.06580578]
[1767540553439,8.696e-05,91182.0,91180.0,0.000999]
[1767540553440,0.05492291,91182.0,91180.0,0.000999]
[1767540553726,0.01096719,91181.0,91177.0,0.06580578]
[1767540554307,0.06580326,91181.0,91177.0,0.06580578]
[1767540554707,0.06571437,91181.0,91177.0,0.06580578]
[1767540554913,0.05492291,91182.0,91181.0,0.000999]
[1767540555363,0.06588998,91182.0,91177.0,0.06580578]
[1767540555800,0.06580329,91181.0,91176.0,0.06580672]
[1767540557282,0.01096731,91180.0,91176.0,0.06580672]
[1767540558157,0.01087842,91180.0,91176.0,0.06580672]
[1767540558906,0.06580329,91181.0,91177.0,0.01096767]
[1767540559663,0.01096719,91181.0,91177.0,0.01096767]
[1767540559848,0.01096719,91181.0,91177.0,0.06580563]
[1767540560049,0.06580335,91181.0,91177.0,0.06580563]
[1767540560305,0.06580335,91181.0,91177.0,0.01096767]
[1767540560527,0.06580335,91181.0,91177.0,0.06580605]
[1767540560671,0.06571444,91181.0,91177.0,0.01096767]
[1767540562042,0.06571444,91181.0,91177.0,0.06580601]
[1767540563530,0.01087829,91181.0,91177.0,0.06580601]
[1767540564484,0.01096731,91180.0,91176.0,0.06580671]
[1767540564694,0.00771993,91180.0,91176.0,0.06580671]
[1767540565143,0.06255652,91180.0,91176.0,0.06580671]
[1767540565395,0.06255652,91180.0,91176.0,0.01096779]
[1767540567732,0.06580468,91179.0,91175.0,0.11391882]
[1767540568076,0.01096743,91179.0,91175.0,0.11391882]
[1767540568807,0.06580495,91179.0,91175.0,0.05907969]
[1767540569008,0.06580495,91179.0,91175.0,0.11391924]
[1767540570465,0.06255652,91180.0,91176.0,0.06580666]
[1767540570655,0.06255652,91180.0,91179.0,0.000999]
[1767540570932,0.06255652,91180.0,91176.0,0.06580666]
[1767540571490,0.06246761,91180.0,91176.0,0.06580666]
[1767540573371,0.01087829,91181.0,91180.0,0.000999]
[1767540573588,0.01087829,91181.0,91178.0,0.01096755]
[1767540573794,0.01087829,91181.0,91177.0,0.06580605]
[1767540575771,0.01087829,91181.0,91171.0,0.04915691]
[1767540575772,0.01087829,91181.0,91173.0,0.21936318]
[1767540576322,0.03301768,91198.0,91181.0,0.04567437]
[1767540576528,0.01096671,91185.0,91181.0,0.04667337]
[1767540576837,0.01096707,91182.0,91178.0,0.01096755]
[1767540577258,0.06580282,91182.0,91177.0,0.08772555]
[1767540577776,0.06580282,91182.0,91178.0,0.01096755]
[1767540578177,0.05483487,91183.0,91179.0,0.01096743]
[1767540578376,0.06580086,91185.0,91181.0,0.01096719]
[1767540578580,0.01096683,91184.0,91180.0,0.05483606]
[1767540578728,0.01096683,91184.0,91180.0,0.06580337]
[1767540578928,0.01096671,91185.0,91181.0,0.06580315]
[1767540579175,0.01096671,91185.0,91181.0,0.01096719]
[1767540580229,0.0658003,91185.0,91181.0,0.01096719]
[1767540581640,0.01096671,91185.0,91181.0,0.01096719]
[1767540581849,0.06580033,91185.0,91180.0,0.06580337]
[1767540583002,0.01096683,91184.0,91180.0,0.06580337]
[1767540583238,0.06580114,91184.0,91180.0,0.01096731]
[1767540584435,0.01096683,91184.0,91180.0,0.01096731]
[1767540584783,0.06580033,91185.0,91181.0,0.01096719]
[1767540586489,0.01096659,91186.0,91181.0,0.01096719]
[1767540586688,0.01087769,91186.0,91181.0,0.01096719]
[1767540587545,0.01096671,91185.0,91181.0,0.06580304]
[1767540587929,0.06580034,91185.0,91181.0,0.06580304]
[1767540588132,0.01096647,91187.0,91185.0,0.000999]
[1767540588334,0.01096623,91189.0,91185.0,0.000999]
[1767540588652,0.01096599,91191.0,91187.0,0.05483225]
[1767540588833,0.01096611,91190.0,91186.0,0.06579906]
[1767540588998,0.06579715,91190.0,91185.0,0.06580026]
[1767540589439,0.06579768,91189.0,91185.0,0.01096671]
[1767540589639,0.01096623,91189.0,91185.0,0.0658001]
[1767540590090,0.05825254,91189.0,91185.0,0.0658001]
[1767540590394,0.01096623,91189.0,91185.0,0.0658001]
[1767540590995,0.06579748,91189.0,91185.0,0.0658001]
[1767540591173,0.06579748,91189.0,91185.0,0.01096671]
[1767540591800,0.06579823,91188.0,91184.0,0.06580048]
[1767540593317,0.01096635,91188.0,91184.0,0.06580048]
[1767540593644,0.06579823,91188.0,91184.0,0.06580048]
[1767540593783,0.06579748,91189.0,91184.0,0.06580048]
[1767540594801,0.01096635,91188.0,91184.0,0.06580048]
[1767540595650,0.01087743,91188.0,91184.0,0.06580048]
[1767540595851,0.01078851,91188.0,91184.0,0.06580048]
[1767540596444,0.01078851,91188.0,91184.0,0.06590336]
[1767540597445,0.06562041,91188.0,91184.0,0.06590336]
[1767540597609,0.11290672,91188.0,91184.0,0.06590336]
[1767540599012,0.11290672,91188.0,91184.0,0.01106971]
[1767540600082,0.01096611,91190.0,91188.0,0.05583027]
[1767540600083,0.04728631,91190.0,91188.0,0.05583027]
[1767540600229,0.01096587,91192.0,91187.0,0.01096647]
[1767540600230,0.01096587,91192.0,91187.0,0.06579882]
[1767540600435,0.01096599,91191.0,91187.0,0.06579882]
[1767540601100,0.06579634,91191.0,91187.0,0.01096647]
[1767540601401,0.06579674,91190.0,91186.0,0.06579939]
[1767540601807,0.06579674,91190.0,91185.0,0.06579978]
[1767540602013,0.06579674,91190.0,91184.0,0.01106971]
[1767540602014,0.06579744,91189.0,91184.0,0.01106971]
[1767540602171,0.05483182,91188.0,91184.0,0.01106971]
[1767540602370,0.06579824,91188.0,91184.0,0.00010288]
[1767540602578,0.01096647,91187.0,91184.0,0.00010288]
[1767540602778,0.01087611,91187.0,91184.0,0.00010288]
[1767540602978,0.06579824,91188.0,91184.0,0.00010288]
[1767540603436,0.06579824,91188.0,91184.0,0.06590374]
[1767540603651,0.06579848,91189.0,91185.0,0.0658001]
[1767540605129,0.06579848,91189.0,91184.0,0.06590374]
[1767540605535,0.06579819,91188.0,91184.0,0.01106971]
[1767540605854,0.01096635,91188.0,91184.0,0.01106971]
[1767540606028,0.0657975,91189.0,91185.0,0.01096671]
[1767540607621,0.0657975,91189.0,91185.0,0.06580028]
[1767540608091,0.0657975,91189.0,91185.0,0.01096671]
[1767540608734,0.01096623,91189.0,91185.0,0.06579997]
[1767540610066,0.06579727,91190.0,91185.0,0.06579997]
[1767540610425,0.06579758,91189.0,91185.0,0.06579997]
[1767540610642,0.01096623,91189.0,91185.0,0.06579997]
[1767540611146,0.06579597,91191.0,91186.0,0.06579947]
[1767540611346,0.06579597,91191.0,91189.0,0.000999]
[1767540611705,0.05483057,91190.0,91189.0,0.000999]
[1767540611924,0.06579668,91190.0,91186.0,0.01096659]
[1767540613410,0.0657975,91189.0,91184.0,0.06590387]
[1767540613613,0.05483244,91187.0,91184.0,0.00010288]
[1767540613861,0.06579845,91188.0,91184.0,0.00010288]
[1767540614570,0.06579741,91189.0,91184.0,0.06590386]
[1767540614791,0.06579741,91189.0,91185.0,0.06580028]
[1767540615834,0.06579741,91189.0,91185.0,0.01096671]
[1767540616043,0.05483282,91187.0,91184.0,0.00010288]
[1767540616257,0.01096647,91187.0,91184.0,0.00010288]
[1767540616687,0.06579854,91188.0,91184.0,0.00010288]
[1767540617195,0.06579854,91188.0,91184.0,0.0659036]
[1767540617614,0.06579931,91187.0,91184.0,0.00010288]
[1767540617825,0.01096647,91187.0,91184.0,0.00010288]
[1767540618404,0.06579854,91188.0,91184.0,0.06590371]
[1767540618602,0.01096647,91187.0,91184.0,0.00010288]
[1767540619573,0.06579901,91187.0,91184.0,0.00010288]
[1767540620791,0.06579827,91188.0,91184.0,0.00010288]
[1767540620999,0.01096635,91188.0,91184.0,0.06590342]
[1767540622011,0.01096647,91187.0,91184.0,0.00010288]
[1767540622215,0.06579906,91187.0,91184.0,0.00010288]
[1767540626009,0.01096635,91188.0,91184.0,0.06590368]
[1767540626221,0.06579852,91189.0,91184.0,0.06590368]
[1767540627424,0.06579852,91189.0,91185.0,0.06580015]
[1767540628259,0.0657977,91190.0,91185.0,0.06580015]
[1767540629744,0.06579753,91189.0,91185.0,0.01096671]
[1767540630369,0.01096623,91189.0,91185.0,0.06580025]
[1767540631341,0.06579757,91189.0,91185.0,0.01096671]
[1767540632287,0.000999,91185.0,91184.0,0.01106971]
[1767540632432,0.04687814,91187.0,91184.0,0.06590389]
[1767540632847,0.06579885,91187.0,91184.0,0.00010288]
[1767540633186,0.04687814,91185.0,91182.0,0.01096707]
[1767540633397,0.04687814,91185.0,91178.0,0.01096755]
[1767540633813,0.04687814,91185.0,91182.0,0.0548352]
[1767540633974,0.05784485,91185.0,91181.0,0.06580304]
[1767540635219,0.01512816,91184.0,91181.0,0.06580304]
[1767540635524,0.06579965,91186.0,91181.0,0.06580304]
[1767540635748,0.00597792,91184.0,91181.0,0.06580304]
[1767540635930,0.0658003,91185.0,91181.0,0.06580304]
[1767540636250,0.00279765,91184.0,91181.0,0.06580304]
[1767540636389,0.01096671,91185.0,91181.0,0.06580304]
[1767540636781,0.06580074,91185.0,91181.0,0.01096719]
[1767540636987,0.02925179,91183.0,91179.0,0.04608052]
[1767540637223,0.01096671,91185.0,91179.0,0.04608052]
[1767540637224,0.06580119,91184.0,91183.0,0.04608052]
[1767540640229,0.01096731,91180.0,91177.0,0.02192]
[1767540640390,0.00541442,91172.0,91169.0,0.04608052]
[1767540640536,0.05484204,91171.0,91169.0,0.04608052]
[1767540641185,0.0602559,91172.0,91169.0,0.04608052]
[1767540641791,0.00441542,91172.0,91171.0,0.00063238]
[1767540642050,0.05925681,91172.0,91171.0,0.00063238]
[1767540642257,0.05925681,91172.0,91171.0,3.8e-07]
[1767540642660,0.02191962,91171.0,91168.0,0.0004989]
[1767540642900,0.08773011,91171.0,91168.0,0.0004989]
[1767540643106,0.02191962,91171.0,91168.0,0.01146766]
[1767540643715,0.02128762,91171.0,91168.0,0.01146766]
[1767540643981,1e-08,91171.0,91168.0,0.01146766]
[1767540644224,1e-08,91171.0,91168.0,0.06631124]
[1767540644889,1e-08,91171.0,91168.0,0.06631145]
[1767540645115,1e-08,91171.0,91168.0,0.01146766]
[1767540645367,1e-08,91171.0,91168.0,0.06631132]
[1767540646248,1e-08,91171.0,91169.0,0.05484297]
[1767540646452,1e-08,91171.0,91168.0,0.06631132]
[1767540648327,1e-08,91171.0,91169.0,0.05484318]
[1767540648484,1e-08,91171.0,91170.0,0.0548426]
[1767540649291,1e-08,91171.0,91170.0,0.04608052]
[1767540651997,1e-08,91171.0,91170.0,0.10092312]
[1767540652203,1e-08,91171.0,91170.0,0.04608052]
[1767540652783,1e-08,91171.0,91170.0,0.10092312]
[1767540653019,0.06580788,91176.0,91172.0,0.04608052]
[1767540653427,6.72e-05,91176.0,91175.0,0.04608052]
[1767540656762,6.72e-05,91176.0,91175.0,0.10092011]
[1767540657382,6.72e-05,91176.0,91175.0,0.04608052]
[1767540657550,6.72e-05,91176.0,91173.0,0.06580879]
[1767540658254,6.72e-05,91176.0,91174.0,0.05483999]
[1767540659649,6.72e-05,91176.0,91173.0,0.06580883]
[1767540660507,6.72e-05,91176.0,91174.0,0.05483969]
[1767540661066,6.72e-05,91176.0,91173.0,0.06580883]
[1767540661298,6.72e-05,91176.0,91172.0,0.06580966]
[1767540661532,6.72e-05,91176.0,91173.0,0.0658084]
[1767540662385,6.72e-05,91176.0,91174.0,0.05484008]
[1767540662807,6.72e-05,91176.0,91175.0,0.04652392]
[1767540669544,2e-07,91176.0,91175.0,0.04652392]
[1767540670333,0.01096731,91180.0,91176.0,0.11233025]
[1767540670652,0.065804,91180.0,91176.0,0.05785261]
[1767540670855,0.06571509,91180.0,91176.0,0.05785261]
[1767540671724,0.06580478,91179.0,91176.0,0.04688482]
[1767540672057,0.06571587,91179.0,91176.0,0.04688482]
[1767540672274,0.06562696,91179.0,91176.0,0.04688482]
[1767540672824,0.05483802,91178.0,91176.0,0.04688482]
[1767540672959,0.01078961,91179.0,91176.0,0.04681782]
[1767540673165,0.05483838,91178.0,91176.0,0.04681782]
[1767540673666,0.05483839,91177.0,91176.0,0.04681782]
[1767540676650,0.05483839,91177.0,91176.0,0.0003609]
[1767540677435,0.05483838,91178.0,91177.0,0.000999]
[1767540678181,0.05483838,91178.0,91176.0,0.0003609]
[1767540678346,0.05483839,91177.0,91176.0,0.0003609]
[1767540679555,0.05474948,91177.0,91176.0,0.0003609]
[1767540682123,0.05483838,91178.0,91176.0,0.0003609]
[1767540684047,0.05483839,91177.0,91176.0,0.0003609]
[1767540687841,0.05474948,91177.0,91176.0,0.0003609]
[1767540690159,0.05375048,91177.0,91176.0,0.0003609]
[1767540690335,0.05483838,91178.0,91176.0,0.0003609]
[1767540691068,0.06562698,91179.0,91176.0,0.0003609]
[1767540692285,0.05483793,91178.0,91176.0,0.0003609]
[1767540692494,0.06562698,91179.0,91176.0,0.0003609]
[1767540693012,0.0108784,91180.0,91174.0,0.04674054]
[1767540693170,0.0003608,91180.0,91178.0,0.04674054]
[1767540694441,0.0003608,91180.0,91176.0,0.11514834]
[1767540694734,0.01132811,91180.0,91176.0,0.11514843]
[1767540694914,0.01132811,91180.0,91176.0,0.06580671]
[1767540695085,0.0003608,91180.0,91176.0,0.06580671]
[1767540695517,0.06616477,91180.0,91176.0,0.06580671]
[1767540695724,0.06616477,91180.0,91176.0,0.01096779]
[1767540696103,0.06616477,91180.0,91175.0,0.0658073]
[1767540696358,0.0548382,91178.0,91176.0,0.04834272]
[1767540697056,0.06580566,91179.0,91176.0,0.04834272]
[1767540697440,0.06616472,91180.0,91176.0,0.04834272]
[1767540697666,0.06616472,91180.0,91179.0,0.000999]
[1767540697879,0.06616472,91180.0,91176.0,0.04834272]
[1767540698325,0.06580479,91179.0,91176.0,0.04834272]
[1767540698670,0.01096743,91179.0,91176.0,0.04834272]
[1767540699165,0.06616472,91180.0,91176.0,0.04834272]
[1767540699364,0.06580263,91182.0,91180.0,0.0006382]
[1767540699709,0.05483598,91181.0,91180.0,0.0006382]
[1767540699911,0.06585007,91182.0,91180.0,0.0006382]
[1767540700121,4.744e-05,91182.0,91180.0,0.05483608]
[1767540700321,4.744e-05,91182.0,91179.0,0.01096743]
[1767540700520,4.744e-05,91182.0,91179.0,0.04934172]
[1767540700737,0.01101451,91182.0,91179.0,0.04934172]
[1767540700885,0.0658499,91182.0,91179.0,0.04934172]
[1767540701948,0.0658499,91182.0,91178.0,0.06580485]
[1767540702267,4.744e-05,91182.0,91179.0,0.04934172]
[1767540702495,0.06585036,91182.0,91179.0,0.04934172]
[1767540702702,0.06585036,91182.0,91179.0,0.04898072]
[1767540702909,0.06585036,91182.0,91177.0,0.06580573]
[1767540704167,0.06580332,91181.0,91177.0,0.01096767]
[1767540706478,0.06580332,91181.0,91176.0,0.1151479]
[1767540706839,0.06585036,91182.0,91177.0,0.06580586]
[1767540707044,0.06585036,91182.0,91178.0,0.04934172]
[1767540707306,0.06585036,91182.0,91178.0,0.06030927]
[1767540707584,0.01096719,91181.0,91178.0,0.04934172]
[1767540708083,0.06585036,91182.0,91178.0,0.04934172]
[1767540711620,0.06580321,91181.0,91178.0,0.04934172]
[1767540712371,0.06580321,91181.0,91177.0,0.06580586]
[1767540712906,0.06585036,91182.0,91178.0,0.06580526]
[1767540713721,0.06585036,91182.0,91178.0,0.11514698]
[1767540714837,0.06585036,91182.0,91178.0,0.04934172]
[1767540715230,0.06585036,91182.0,91178.0,0.11514699]
[1767540715628,0.01101451,91182.0,91178.0,0.11514699]
[1767540715977,0.01096719,91181.0,91178.0,0.04934172]
[1767540716546,0.01096731,91180.0,91176.0,0.11514829]
[1767540716681,0.0108784,91180.0,91176.0,0.11514829]
[1767540717036,0.06580325,91181.0,91177.0,0.06580603]
[1767540718763,0.06580325,91181.0,91176.0,0.11514829]
[1767540719460,0.06580325,91181.0,91177.0,0.06580582]
[1767540719907,0.0658502,91182.0,91178.0,0.01096755]
[1767540720257,0.0658502,91182.0,91177.0,0.11514754]
[1767540720510,0.0658502,91182.0,91178.0,0.04742964]
[1767540720683,0.05483569,91182.0,91178.0,0.11323493]
[1767540720845,0.04920828,91182.0,91178.0,0.05839719]
[1767540721309,0.05483602,91181.0,91178.0,0.04742964]
[1767540721510,0.01096852,91170.0,91161.0,0.0109696]
[1767540721671,0.0109684,91171.0,91170.0,0.000999]
[1767540721831,0.01096815,91173.0,91170.0,0.000999]
[1767540722041,0.054842,91171.0,91170.0,0.000999]
[1767540722265,0.03865094,91171.0,91170.0,0.00063237]
[1767540722475,0.0109684,91171.0,91170.0,0.00063237]
[1767540722675,0.06581014,91173.0,91170.0,0.00058793]
[1767540723131,0.1151212,91173.0,91170.0,0.00058793]
[1767540724198,0.04931106,91172.0,91170.0,0.00058793]
[1767540724418,0.10415306,91171.0,91170.0,0.00058793]
[1767540726061,0.10415306,91171.0,91170.0,0.00054349]
[1767540727624,0.054842,91171.0,91170.0,0.00054349]
[1767540728157,0.1041528,91172.0,91171.0,0.00095456]
[1767540728368,0.054842,91171.0,91170.0,0.00054349]
[1767540728562,0.10415306,91171.0,91170.0,0.00054349]
[1767540729270,0.10415306,91171.0,91170.0,0.00045449]
[1767540729644,0.054842,91171.0,91170.0,0.00045449]
[1767540730068,0.05484174,91172.0,91170.0,0.00045449]
[1767540730472,0.06581005,91173.0,91170.0,0.00045449]
[1767540730780,0.054842,91171.0,91170.0,0.00045449]
[1767540731148,0.05484147,91172.0,91170.0,0.00045449]
[1767540733290,0.054842,91171.0,91170.0,0.00045449]
[1767540734026,0.05484147,91172.0,91170.0,0.00045449]
[1767540734396,0.054842,91171.0,91170.0,0.00045449]
[1767540735814,0.05484147,91172.0,91170.0,0.00045449]
[1767540737354,0.06581004,91173.0,91170.0,0.00045449]
[1767540737717,0.0548414,91172.0,91170.0,0.00045449]
[1767540738032,0.06581004,91173.0,91170.0,0.00045449]
[1767540738887,0.06580836,91174.0,91170.0,0.00045449]
[1767540739123,0.06580795,91175.0,91170.0,0.06626532]
[1767540739331,0.06580795,91175.0,91170.0,0.11369496]
[1767540741639,0.06580795,91175.0,91170.0,0.11405576]
[1767540741799,0.06580795,91175.0,91170.0,0.06662612]
[1767540742921,0.06580795,91175.0,91170.0,0.06617163]
[1767540743637,0.06580795,91175.0,91171.0,0.06581036]
[1767540743844,0.06629237,91176.0,91171.0,0.06581036]
[1767540744074,0.06629237,91176.0,91172.0,0.06580951]
[1767540744208,0.06629237,91176.0,91172.0,0.01096827]
[1767540744750,0.06629237,91176.0,91172.0,0.06580958]
[1767540744951,0.01145223,91176.0,91172.0,0.06580958]
[1767540745152,0.06629122,91176.0,91172.0,0.06580958]
[1767540745335,0.00048444,91176.0,91173.0,0.01096815]
[1767540745526,0.00048444,91176.0,91175.0,0.05483959]
[1767540745702,0.05483598,91183.0,91178.0,0.06580487]
[1767540745901,0.05483426,91184.0,91178.0,0.06580487]
[1767540746140,0.06580073,91185.0,91180.0,0.0658037]
[1767540746345,0.01096635,91188.0,91181.0,0.21934394]
[1767540746516,0.05483286,91187.0,91182.0,0.0548351]
[1767540746746,0.06579933,91187.0,91183.0,0.06580171]
[1767540747143,0.0657997,91186.0,91182.0,0.06580217]
[1767540747351,0.000999,91183.0,91182.0,0.04742964]
[1767540747522,0.0657997,91186.0,91182.0,0.04742964]
[1767540748088,0.06580044,91185.0,91182.0,0.04742964]
[1767540748294,0.06580044,91185.0,91182.0,0.04643064]
[1767540748456,0.05483426,91184.0,91182.0,0.04643064]
[1767540748994,0.06580044,91185.0,91182.0,0.04643064]
[1767540749217,0.01096671,91185.0,91182.0,0.04643064]
[1767540749551,0.06580072,91186.0,91182.0,0.04643064]
[1767540750288,0.06580072,91186.0,91182.0,0.11223303]
[1767540750925,0.06580072,91186.0,91182.0,0.04643064]
[1767540751262,0.01096671,91185.0,91182.0,0.04643064]
[1767540751686,0.06580072,91186.0,91182.0,0.04643064]
[1767540752409,0.01096659,91186.0,91183.0,0.04778501]
[1767540752592,0.00996759,91186.0,91183.0,0.04778501]
[1767540753231,0.06579885,91187.0,91183.0,0.04778501]
[1767540753688,0.01096635,91188.0,91184.0,0.04974924]
[1767540753856,0.06579897,91187.0,91183.0,0.06580159]
[1767540754055,0.06579897,91187.0,91183.0,0.01096695]
[1767540755496,0.01096647,91187.0,91183.0,0.06580152]
[1767540756024,0.06579826,91188.0,91183.0,0.06580152]
[1767540756490,0.06579826,91188.0,91184.0,0.01096683]
[1767540757309,0.01096647,91187.0,91183.0,0.06580152]
[1767540758241,0.06579826,91188.0,91184.0,0.06071607]
[1767540758662,0.06579826,91188.0,91184.0,0.11554999]
[1767540758867,0.06579826,91188.0,91184.0,0.06071607]
[1767540760643,0.01096647,91187.0,91183.0,0.06580152]
[1767540761442,0.06579826,91188.0,91183.0,0.06580152]
[1767540762784,0.06575309,91188.0,91183.0,0.06580152]
[1767540763682,0.01092118,91188.0,91184.0,0.11554989]
[1767540765045,0.06575311,91188.0,91184.0,0.11554989]
[1767540765483,0.06575311,91188.0,91184.0,0.06071607]
[1767540765869,0.01092118,91188.0,91184.0,0.1155502]
[1767540766084,0.06579841,91189.0,91184.0,0.1155502]
[1767540766264,0.06579841,91189.0,91186.0,0.04974924]
[1767540768301,0.06579689,91190.0,91186.0,0.06071583]
[1767540768502,0.01096623,91189.0,91185.0,0.06580011]
[1767540768706,0.01096623,91189.0,91186.0,0.04974924]
[1767540768908,0.01096623,91189.0,91185.0,0.06580011]
[1767540769205,0.06579765,91189.0,91185.0,0.01096671]
[1767540769688,0.01096635,91188.0,91184.0,0.11555014]
[1767540770203,0.06579827,91188.0,91184.0,0.04974924]
[1767540770623,0.06579823,91188.0,91184.0,0.06071607]
[1767540771380,0.06579823,91188.0,91184.0,0.11555021]
[1767540772140,0.06579823,91188.0,91184.0,0.06580097]
[1767540772347,0.06579823,91188.0,91184.0,0.01096683]
[1767540774652,0.06579893,91187.0,91183.0,0.11555055]
[1767540774827,0.01096647,91187.0,91183.0,0.11555055]
[1767540775010,0.06579823,91188.0,91183.0,0.11555055]
[1767540775618,0.06579823,91188.0,91184.0,0.06580087]
[1767540775842,0.06579823,91188.0,91184.0,0.01096683]
[1767540776145,0.06579823,91188.0,91184.0,0.06580085]
[1767540776348,0.06579742,91189.0,91184.0,0.06580085]
[1767540777541,0.06579742,91189.0,91185.0,0.06580028]
[1767540777761,0.06579742,91189.0,91185.0,0.06071595]